[Event "Istanbul Open 2017"]
[Site "Istanbul"]
[Date "2017.09.16"]
[Round "8"]
[White "Nukan, Baris Tuna"]
[Black "Inciler, Yusuf Efe"]
[Result "1/2-1/2"]
[ECO "C30"]
[WhiteElo "1656"]
[BlackElo "1494"]
[Annotator "NA"]
[PlyCount "73"]
[EventDate "2017.??.??"]
[EventType "swiss"]
[EventCountry "TUR"]
[SourceTitle "playchess.com"]
[Source "ChessBase"]
[SourceQuality "1"]
[TimeControl "5400+30"]

1. e4 {[%emt 0:00:30]} e5 {[%emt 0:01:00]} 2. Nc3 {[%emt 0:00:00]} Nc6 {[%emt 0:00:00]} 3. f4 {[%emt 0:00:00]} d6 {[%emt 0:00:00]} 4. Nf3 {[%emt 0:00:30]} Nf6 {[%emt 0:00:30]} 5. Bb5 {[%emt 0:00:30]} Bd7 {[%emt 0:05:30]} 6. d3 {[%emt 0:01:30]} exf4 {[%emt 0:01:30]} 7. Bxf4 {[%emt 0:01:30]} a6 {[%emt 0:01:30]} 8. Ba4 {[%emt 0:00:30]} b5 {[%emt 0:01:30]} 9. Bb3 {[%emt 0:00:30]} Bg4 {[%emt 0:01:30]} 10. h3 {[%emt 0:14:30]} Bxf3 {[%emt 0:00:30]} 11. Qxf3 {[%emt 0:00:00]} Nd4 {[%emt 0:02:30]} 12. Qf2 {[%emt 0:00:00]} Nxb3 {[%emt 0:03:30]} 13. axb3 {[%emt 0:00:30]} Nh5 {[%emt 0:02:30]} 14. O-O {[%emt 0:01:30]} Nxf4 {[%emt 0:00:30]} 15. Qxf4 {[%emt 0:00:30]} Qd7 {[%emt 0:01:30]} 16. Nd5 {[%emt 0:01:30]} f6 {[%emt 0:02:30]} 17. Qh4 {[%emt 0:01:30]} Qf7 {[%emt 0:02:30]} 18. Qf4 {[%emt 0:09:30]} Ra7 {[%emt 0:01:30]} 19. Qf5 {[%emt 0:01:30]} Qd7 {[%emt 0:00:30]} 20. Ra2 {[%emt 0:03:30]} Be7 {[%emt 0:03:30]} 21. Rfa1 {[%emt 0:01:30]} Qxf5 {[%emt 0:03:30]} 22. exf5 {[%emt 0:00:30]} Kd7 {[%emt 0:01:30]} 23. Nxe7 {[%emt 0:00:30]} Kxe7 {[%emt 0:00:00]} 24. Rxa6 {[%emt 0:00:30]} Rxa6 {[%emt 0:00:00]} 25. Rxa6 {[%emt 0:00:00]} Kd7 {[%emt 0:00:30]} 26. Kf2 {[%emt 0:01:00]} Re8 {[%emt 0:00:00]} 27. g4 {[%emt 0:00:30]} g6 {[%emt 0:01:00]} 28. fxg6 {[%emt 0:01:30]} hxg6 {[%emt 0:00:30]} 29. Ra1 {[%emt 0:01:30]} Rh8 {[%emt 0:01:30]} 30. Kg3 {[%emt 0:00:30]} Re8 {[%emt 0:00:00]} 31. Rf1 {[%emt 0:00:30]} Re2 {[%emt 0:01:00]} 32. Rf2 {[%emt 0:01:30]} Re3+ {[%emt 0:00:00]} 33. Kg2 {[%emt 0:00:30]} Ke6 {[%emt 0:00:00]} 34. h4 {[%emt 0:04:30]} c5 {[%emt 0:00:30]} 35. Rd2 {[%emt 0:03:30]} Ke5 {[%emt 0:00:30]} 36. Rf2 {[%emt 0:00:30]} Ke6 {[%emt 0:00:30]} 37. Rd2 {[%emt 0:07:30]} 1/2-1/2

[Event "Istanbul Open 2017"]
[Site "Istanbul"]
[Date "2017.09.16"]
[Round "8"]
[White "Kabadayi, Suleyman Arda"]
[Black "Ilter, Kerem"]
[Result "1/2-1/2"]
[ECO "C10"]
[WhiteElo "1579"]
[BlackElo "1630"]
[Annotator "NA RC"]
[PlyCount "161"]
[EventDate "2017.??.??"]
[EventType "swiss"]
[EventCountry "TUR"]
[SourceTitle "playchess.com"]
[Source "ChessBase"]
[SourceQuality "1"]
[TimeControl "5400+30"]

1. e4 e6 2. d4 d5 3. Nc3 Nc6 4. Nf3 Nf6 5. e5 Ne4 6. Bd3 Bb4 7. Bd2 Nxd2 8. Qxd2 b6 9. O-O-O Bb7 10. a3 Be7 11. Rde1 a6 12. Ne2 Na5 13. Kb1 c5 14. c3 c4 15. Bc2 b5 16. Nfg1 Nc6 17. f4 a5 18. Ka2 b4 19. Ba4 Qb6 20. Nf3 O-O 21. g4 bxa3 22. bxa3 Nb4+ 23. Ka1 Nd3 24. Rb1 Qc7 25. Nc1 Ba6 26. Qa2 Rab8 27. Ne2 Rfc8 28. h4 Bf8 29. h5 Qe7 30. g5 Qxa3 31. Qxa3 Bxa3 32. Rxb8 Rxb8 33. Rb1 {[%emt 1:43:17]} Rxb1+ {[%emt 1:14:00]} 34. Kxb1 {[%emt 0:00:30]} Kf8 {[%emt 0:00:30]} 35. Nh4 {[%emt 0:00:30]} Be7 {[%emt 0:00:30]} 36. Ng2 {[%emt 0:00:37]} Nf2 {[%emt 0:00:30]} 37. Ne3 {[%emt 0:00:59]} Ne4 {[%emt 0:00:30]} 38. Kc2 {[%emt 0:00:00]} Nf2 {[%emt 0:02:30]} 39. Kb2 {[%emt 0:00:26]} Nd3+ {[%emt 0:00:30]} 40. Ka2 {[%emt 0:02:00]} h6 {[%emt 0:02:30]} 41. g6 {[%emt 0:00:50]} Bh4 {[%emt 0:01:30]} 42. f5 {[%emt 0:01:01]} Bg5 {[%emt 0:00:30]} 43. Ng2 {[%emt 0:00:34]} exf5 {[%emt 0:02:30]} 44. Bc6 {[%emt 0:00:12]} fxg6 {[%emt 0:00:00]} 45. hxg6 {[%emt 0:00:02]} h5 {[%emt 0:01:00]} 46. Ng3 {[%emt 0:01:29]} h4 {[%emt 0:00:30]} 47. Nxf5 {[%emt 0:00:13]} h3 {[%emt 0:00:30]} 48. Nge3 {[%emt 0:00:21]} h2 {[%emt 0:01:30]} 49. Bxd5 {[%emt 0:00:32]} Nf2 {[%emt 0:08:05]} 50. Ka3 {[%emt 0:00:30]} h1=Q {[%emt 0:00:36]} 51. Bxh1 {[%emt 0:00:30]} Nxh1 {[%emt 0:00:43]} 52. Ka4 {[%emt 0:00:30]} Bd8 {[%emt 0:00:36]} 53. d5 {[%emt 0:00:35]} Nf2 {[%emt 0:00:00]} 54. d6 {[%emt 0:00:34]} Bc8 {[%emt 0:00:29]} 55. Nd4 {[%emt 0:00:29]} Ne4 {[%emt 0:00:40]} 56. Nxc4 {[%emt 0:00:26]} Nxc3+ {[%emt 0:00:36]} 57. Kb3 {[%emt 0:00:30]} Nd5 {[%emt 0:00:53]} 58. e6 {[%emt 0:00:30]} Nf4 {[%emt 0:00:36]} 59. e7+ {[%emt 0:00:30]} Bxe7 {[%emt 0:00:33]} 60. dxe7+ {[%emt 0:00:30]} Kxe7 {[%emt 0:00:36]} 61. Nxa5 {[%emt 0:00:30]} Nxg6 {[%emt 0:00:37]} 62. Nc4 {[%emt 0:00:30]} Nf4 {[%emt 0:00:04]} 63. Kc2 {[%emt 0:00:37]} Kf6 {[%emt 0:02:28]} 64. Kd2 {[%emt 0:00:08]} Kg5 {[%emt 0:00:36]} 65. Ke3 {[%emt 0:00:30]} Nd5+ {[%emt 0:00:16]} 66. Kf2 {[%emt 0:00:43]} Nf6 {[%emt 0:00:38]} 67. Nd6 {[%emt 0:00:13]} Bd7 {[%emt 0:00:20]} 68. Kf3 {[%emt 0:00:52]} Kh5 {[%emt 0:01:20]} 69. Kg3 {[%emt 0:00:30]} g6 {[%emt 0:00:52]} 70. Nc4 {[%emt 0:00:23]} g5 {[%emt 0:01:01]} 71. Ne5 {[%emt 0:00:19]} Bc8 {[%emt 0:00:36]} 72. Nf7 {[%emt 0:00:44]} Nd5 {[%emt 0:02:12]} 73. Nxg5 {[%emt 0:00:29]} Kxg5 {[%emt 0:00:06]} 74. Nf3+ {[%emt 0:00:27]} Kf5 {[%emt 0:00:09]} 75. Nh4+ {[%emt 0:00:15]} Ke4 {[%emt 0:00:09]} 76. Kf2 {[%emt 0:00:19]} Ba6 {[%emt 0:00:17]} 77. Kg3 {[%emt 0:01:04]} Ne7 {[%emt 0:00:49]} 78. Kg4 {[%emt 0:00:30]} Be2+ {[%emt 0:00:30]} 79. Kg5 {[%emt 0:00:30]} Nd5 {[%emt 0:00:30]} 80. Ng6 {[%emt 0:00:30]} Ne3 {[%emt 0:00:30]} 81. Nf4 {[%emt 0:00:24]} 1/2-1/2

[Event "Istanbul Open 2017"]
[Site "Istanbul"]
[Date "2017.09.17"]
[Round "9"]
[White "Erden, Kadir"]
[Black "Yaylali, Adnan Dogan"]
[Result "1-0"]
[ECO "C55"]
[WhiteElo "2283"]
[BlackElo "1873"]
[Annotator "ChessBase"]
[PlyCount "147"]
[EventDate "2017.??.??"]
[EventType "swiss"]
[EventCountry "TUR"]
[SourceTitle "playchess.com"]
[Source "ChessBase"]
[SourceQuality "1"]
[TimeControl "5400+30"]

1. e4 {[%emt 0:00:30]} e5 {[%emt 0:02:00]} 2. Nf3 {[%emt 0:00:30]} Nc6 {[%emt 0:00:30]} 3. Bc4 {[%emt 0:00:00]} Nf6 {[%emt 0:00:00]} 4. d3 {[%emt 0:00:00]} Be7 {[%emt 0:00:00]} 5. O-O {[%emt 0:00:30]} O-O {[%emt 0:00:30]} 6. Re1 {[%emt 0:00:00]} d6 {[%emt 0:00:30]} 7. a4 {[%emt 0:00:00]} h6 {[%emt 0:01:30]} 8. a5 {[%emt 0:01:30]} a6 {[%emt 0:00:00]} 9. Nbd2 {[%emt 0:00:30]} Re8 {[%emt 0:00:00]} 10. Nf1 {[%emt 0:00:30]} Nh7 {[%emt 0:01:30]} 11. c3 {[%emt 0:01:30]} Ng5 {[%emt 0:05:30]} 12. Ne3 {[%emt 0:02:30]} Be6 {[%emt 0:01:30]} 13. Bd5 {[%emt 0:04:30]} Qd7 {[%emt 0:00:30]} 14. Nd2 {[%emt 0:11:30]} Nd8 {[%emt 0:02:30]} 15. Bxe6 {[%emt 0:06:30]} Ndxe6 {[%emt 0:03:30]} 16. Nd5 {[%emt 0:00:30]} Bd8 {[%emt 0:08:30]} 17. Nc4 {[%emt 0:01:30]} Nf8 {[%emt 0:00:00]} 18. h3 {[%emt 0:09:30]} Ng6 {[%emt 0:03:00]} 19. Qg4 {[%emt 0:01:30]} Qxg4 {[%emt 0:02:30]} 20. hxg4 {[%emt 0:00:00]} Ne6 {[%emt 0:00:30]} 21. g3 {[%emt 0:01:00]} Nc5 {[%emt 0:03:30]} 22. Rd1 {[%emt 0:00:30]} c6 {[%emt 0:10:30]} 23. Ndb6 {[%emt 0:10:30]} Bxb6 {[%emt 0:01:30]} 24. Nxb6 {[%emt 0:00:30]} Rad8 {[%emt 0:01:30]} 25. Be3 {[%emt 0:00:30]} Nd7 {[%emt 0:04:30]} 26. Na4 {[%emt 0:12:30]} Ndf8 {[%emt 0:12:30]} 27. f3 {[%emt 0:00:30]} Ne6 {[%emt 0:12:30]} 28. Kf1 {[%emt 0:00:30]} d5 {[%emt 0:03:30]} 29. Ke2 {[%emt 0:00:30]} d4 {[%emt 0:00:37]} 30. Bd2 {[%emt 0:03:30]} Ngf8 {[%emt 0:01:24]} 31. c4 {[%emt 0:01:30]} Nd7 {[%emt 0:02:19]} 32. b4 {[%emt 0:00:30]} Rb8 {[%emt 0:01:33]} 33. f4 {[%emt 0:00:30]} f6 {[%emt 0:02:07]} 34. f5 {[%emt 0:00:30]} Nc7 {[%emt 0:00:12]} 35. Rdb1 {[%emt 0:00:30]} Kf7 {[%emt 0:00:33]} 36. Rb3 {[%emt 0:01:30]} Red8 {[%emt 0:01:48]} 37. Rab1 {[%emt 0:00:30]} Re8 {[%emt 0:01:15]} 38. Kf3 {[%emt 0:01:30]} Red8 {[%emt 0:02:36]} 39. Bc1 {[%emt 0:00:30]} Re8 {[%emt 0:03:00]} 40. Nb2 {[%emt 0:02:30]} Rh8 {[%emt 0:01:26]} 41. Bd2 {[%emt 0:00:30]} Rhe8 {[%emt 0:00:37]} 42. Nd1 {[%emt 0:00:30]} Rh8 {[%emt 0:00:58]} 43. Nf2 {[%emt 0:00:30]} Rhe8 {[%emt 0:00:55]} 44. Nh3 {[%emt 0:00:30]} Red8 {[%emt 0:01:02]} 45. Ng1 {[%emt 0:00:30]} Re8 {[%emt 0:00:28]} 46. Ke2 {[%emt 0:00:00]} Ke7 {[%emt 0:05:35]} 47. Nf3 {[%emt 0:00:00]} Kf7 {[%emt 0:00:22]} 48. Ne1 {[%emt 0:00:30]} Ke7 {[%emt 0:00:30]} 49. Nc2 {[%emt 0:00:30]} Kd6 {[%emt 0:00:40]} 50. Na3 {[%emt 0:02:30]} Red8 {[%emt 0:00:30]} 51. R3b2 {[%emt 0:06:44]} Rdc8 {[%emt 0:00:11]} 52. b5 {[%emt 0:07:36]} c5 {[%emt 0:00:15]} 53. Nc2 {[%emt 0:01:28]} Rd8 {[%emt 0:00:30]} 54. Ne1 {[%emt 0:00:18]} Rf8 {[%emt 0:00:29]} 55. Nf3 {[%emt 0:00:07]} Rfc8 {[%emt 0:00:29]} 56. Ra2 {[%emt 0:00:10]} Rd8 {[%emt 0:00:27]} 57. Rab2 {[%emt 0:00:54]} Rdc8 {[%emt 0:00:07]} 58. Rh1 {[%emt 0:01:41]} Ra8 {[%emt 0:01:29]} 59. Rbb1 {[%emt 0:00:16]} Rd8 {[%emt 0:00:33]} 60. Rh5 {[%emt 0:00:23]} Rab8 {[%emt 0:00:30]} 61. b6 {[%emt 0:00:29]} Ne8 {[%emt 0:00:23]} 62. Rbh1 {[%emt 0:00:29]} Rbc8 {[%emt 0:00:29]} 63. R5h2 {[%emt 0:00:51]} Nb8 {[%emt 0:00:28]} 64. Bxh6 {[%emt 0:01:52]} gxh6 {[%emt 0:00:12]} 65. Rxh6 {[%emt 0:00:04]} Nc6 {[%emt 0:00:57]} 66. g5 {[%emt 0:01:16]} Rd7 {[%emt 0:00:13]} 67. g4 {[%emt 0:00:35]} Rf7 {[%emt 0:00:45]} 68. gxf6 {[%emt 0:00:28]} Rxf6 {[%emt 0:00:27]} 69. g5 {[%emt 0:00:05]} Rxh6 {[%emt 0:00:11]} 70. Rxh6+ {[%emt 0:00:07]} Ke7 {[%emt 0:00:16]} 71. Rh7+ {[%emt 0:00:10]} Kf8 {[%emt 0:00:13]} 72. Nh4 {[%emt 0:00:35]} Rd8 {[%emt 0:00:43]} 73. f6 {[%emt 0:00:29]} Nd6 {[%emt 0:01:46]} 74. g6 {[%emt 0:00:30]} 1-0

[Event "Istanbul Open 2017"]
[Site "Istanbul"]
[Date "2017.09.17"]
[Round "9"]
[White "Erdogan, Anil Berk"]
[Black "Nuri, Murad"]
[Result "1/2-1/2"]
[ECO "B51"]
[WhiteElo "2106"]
[BlackElo "2285"]
[Annotator "ChessBase"]
[PlyCount "104"]
[EventDate "2017.??.??"]
[EventType "swiss"]
[EventCountry "TUR"]
[SourceTitle "playchess.com"]
[Source "ChessBase"]
[SourceQuality "1"]
[TimeControl "5400+30"]

1. e4 {[%emt 0:00:00]} c5 {[%emt 0:08:00]} 2. Nf3 {[%emt 0:00:00]} d6 {[%emt 0:01:30]} 3. Bb5+ {[%emt 0:02:30]} Nd7 {[%emt 0:00:30]} 4. d4 {[%emt 0:00:30]} Ngf6 {[%emt 0:04:30]} 5. Qd3 {[%emt 0:21:30]} a6 {[%emt 0:07:30]} 6. Bxd7+ {[%emt 0:02:30]} Nxd7 {[%emt 0:00:30]} 7. c4 {[%emt 0:04:30]} cxd4 {[%emt 0:08:30]} 8. Qxd4 {[%emt 0:01:30]} Nc5 {[%emt 0:06:30]} 9. Nc3 {[%emt 0:03:30]} e5 {[%emt 0:01:30]} 10. Qe3 {[%emt 0:02:30]} f5 {[%emt 0:08:30]} 11. b4 {[%emt 0:07:30]} f4 {[%emt 0:01:30]} 12. Qe2 {[%emt 0:01:30]} Nd7 {[%emt 0:01:30]} 13. g3 {[%emt 0:04:30]} fxg3 {[%emt 0:05:30]} 14. hxg3 {[%emt 0:03:30]} Be7 {[%emt 0:00:30]} 15. Nh4 {[%emt 0:01:30]} Bxh4 {[%emt 0:03:30]} 16. Rxh4 {[%emt 0:00:30]} Nf6 {[%emt 0:00:30]} 17. Bg5 {[%emt 0:09:30]} O-O {[%emt 0:06:30]} 18. Nd5 {[%emt 0:09:30]} Be6 {[%emt 0:00:30]} 19. Bxf6 {[%emt 0:08:07]} gxf6 {[%emt 0:00:30]} 20. Qh5 {[%emt 0:10:09]} Rf7 {[%emt 0:00:00]} 21. Kf1 {[%emt 0:03:11]} b5 {[%emt 0:06:00]} 22. cxb5 {[%emt 0:01:55]} axb5 {[%emt 0:00:30]} 23. Ne3 {[%emt 0:00:33]} Qd7 {[%emt 0:00:30]} 24. Kg2 {[%emt 0:00:32]} Rg7 {[%emt 0:00:30]} 25. g4 {[%emt 0:00:31]} Qb7 {[%emt 0:09:32]} 26. f3 {[%emt 0:00:26]} Rg5 {[%emt 0:00:05]} 27. Qh6 {[%emt 0:00:10]} Rf8 {[%emt 0:00:09]} 28. Rah1 {[%emt 0:00:29]} Rf7 {[%emt 0:00:27]} 29. Rh5 {[%emt 0:00:46]} Rgg7 {[%emt 0:00:21]} 30. R5h2 {[%emt 0:00:29]} d5 {[%emt 0:08:39]} 31. exd5 {[%emt 0:00:47]} Bxd5 {[%emt 0:00:30]} 32. Nxd5 {[%emt 0:00:03]} Qxd5 {[%emt 0:00:30]} 33. Kg3 {[%emt 0:00:30]} f5 {[%emt 0:00:30]} 34. Rc1 {[%emt 0:00:30]} f4+ {[%emt 0:00:30]} 35. Kh4 {[%emt 0:00:30]} Qd8+ {[%emt 0:00:30]} 36. g5 {[%emt 0:00:30]} Rg6 {[%emt 0:00:30]} 37. Qh5 {[%emt 0:00:30]} Rfg7 {[%emt 0:00:30]} 38. Rg2 {[%emt 0:00:30]} h6 {[%emt 0:00:30]} 39. Rcg1 {[%emt 0:00:30]} e4 {[%emt 0:00:30]} 40. fxe4 {[%emt 0:00:28]} hxg5+ {[%emt 0:01:18]} 41. Kg4 {[%emt 0:00:43]} Qd7+ {[%emt 0:00:15]} 42. Kf3 {[%emt 0:00:04]} Qd3+ {[%emt 0:08:12]} 43. Kf2 {[%emt 0:00:25]} f3 {[%emt 0:00:22]} 44. Rh2 {[%emt 0:00:52]} Qe2+ {[%emt 0:00:14]} 45. Kg3 {[%emt 0:00:04]} Qe3 {[%emt 0:00:02]} 46. Rd1 {[%emt 0:01:07]} f2+ {[%emt 0:01:29]} 47. Qf3 {[%emt 0:00:00]} Qxf3+ {[%emt 0:00:00]} 48. Kxf3 {[%emt 0:00:25]} Rf7+ {[%emt 0:00:27]} 49. Ke2 {[%emt 0:00:02]} Rgf6 {[%emt 0:01:42]} 50. Rf1 {[%emt 0:00:07]} Ra6 {[%emt 0:00:09]} 51. Rg2 {[%emt 0:01:54]} Rxa2+ {[%emt 0:00:09]} 52. Ke3 {[%emt 0:00:08]} Ra3+ {[%emt 0:00:36]} 1/2-1/2

[Event "Istanbul Open 2017"]
[Site "Istanbul"]
[Date "2017.09.17"]
[Round "9"]
[White "Zeydan, Salih"]
[Black "Buker, Muhittin"]
[Result "1-0"]
[ECO "C25"]
[WhiteElo "2057"]
[BlackElo "1969"]
[Annotator "NA RC"]
[PlyCount "25"]
[EventDate "2017.??.??"]
[EventType "swiss"]
[EventCountry "TUR"]
[SourceTitle "playchess.com"]
[Source "ChessBase"]
[SourceQuality "1"]
[TimeControl "5400+30"]

{[%evp 8,18,133,107,241,220,258,266,277,285,598,606,647]} 1. e4 {[%emt 0:00:30]} e5 {[%emt 0:01:00]} 2. Nc3 {[%emt 0:04:30]} Bc5 {[%emt 0:02:30]} 3. f4 {[%emt 0:08:30]} Bxg1 {[%emt 0:01:30]} 4. Rxg1 {[%emt 0:00:00]} exf4 {[%emt 0:00:30]} ({Black should play} 4... Nc6 $1 $14) 5. d4 {[%emt 0:01:00]} Qh4+ $2 {[%emt 0:03:30]} (5... Ne7 $16) 6. g3 {[%emt 0:00:30]} Qxh2 {[%emt 0:02:30]} 7. Rg2 {[%emt 0:01:30]} Qh1 {[%emt 0:00:00]} 8. Qg4 {[%emt 0:13:30]} ({Not} 8. Bxf4 d6 $16) ({Weaker is} 8. gxf4 Qh4+ 9. Kd2 Ne7 $14) 8... Ne7 $2 {[%emt 0:03:00]} (8... f3 {is a better chance.} 9. Qxf3 Ne7) 9. Nd5 {[%emt 0:02:30]} Ng6 $18 {[%emt 0:13:30]} 10. Bxf4 {[%emt 0:06:30]} Na6 {[%emt 0:01:30]} 11. O-O-O {[%emt 0:03:30]} d6 {[%emt 0:03:30]} 12. Qf3 {[%emt 0:17:30]} Bh3 {[%emt 0:00:30]} 13. Bb5+ {[%emt 0:00:30]} 1-0

[Event "Istanbul Open 2017"]
[Site "Istanbul"]
[Date "2017.09.17"]
[Round "9"]
[White "Akin, Yagiz Cinar"]
[Black "Demirbag, Alihan"]
[Result "1/2-1/2"]
[ECO "A43"]
[WhiteElo "1823"]
[BlackElo "1932"]
[Annotator "NA RC"]
[PlyCount "81"]
[EventDate "2017.??.??"]
[EventType "swiss"]
[EventCountry "TUR"]
[SourceTitle "playchess.com"]
[Source "ChessBase"]
[SourceQuality "1"]
[TimeControl "5400+30"]

{[%evp 14,76,16,5,6,10,20,0,0,32767,32767,0,0,0,0,-6,28,-22,-10,-69,-15,-85,-88,-92,-70,-58,32767,32767,32767,32767,32767,32767,0,0,0,-4,0,0,0,-6,0,0,0,0,0,0,0,-31,-40,-33,-8,-37,0,0,0,0,0,0,0,0,0,0,8,0,0]} 1. e4 {[%emt 0:00:30]} g6 {[%emt 0:01:00]} 2. d4 {[%emt 0:00:00]} Bg7 {[%emt 0:00:00]} 3. Nc3 {[%emt 0:00:00]} d6 {[%emt 0:00:00]} 4. f4 {[%emt 0:00:00]} a6 {[%emt 0:00:00]} 5. a4 {[%emt 0:00:00]} Nf6 {[%emt 0:00:00]} 6. Nf3 {[%emt 0:00:00]} c5 {[%emt 0:01:30]} 7. d5 {[%emt 0:00:00]} O-O {[%emt 0:00:30]} 8. Bd3 {[%emt 0:00:30]} e6 {[%emt 0:01:30]} 9. O-O {[%emt 0:01:30]} exd5 {[%emt 0:00:00] LiveBook: 4 Games A43: Alt-Benoni} 10. Nxd5 {[%emt 0:00:00]} (10. exd5 Bg4 11. h3 Bxf3 12. Qxf3 Nbd7 13. Be3 Qc7 14. Rfe1 Rfe8 15. Bf2 Rab8 16. Bf1 Qa5 17. g4 {0-1 (37) Dobrev,N (2448)-Doncea,V (2451) France 2007}) 10... Nxd5 {[%emt 0:05:00]} 11. exd5 {[%emt 0:00:00]} Bg4 {[%emt 0:00:30]} 12. h3 $146 {[%emt 0:02:30]} ({Vorgänger:} 12. Kh1 Nd7 13. h3 Bxf3 14. Qxf3 Qh4 15. a5 f5 16. Bd2 Rae8 17. Rae1 {½-½ (27) Mo,K (2064)-Resika,N (2204) Philadelphia 2011}) 12... Bxf3 {[%emt 0:00:30]} 13. Qxf3 {[%emt 0:00:30]} Nd7 {[%emt 0:00:30]} 14. a5 {[%emt 0:03:30]} b5 {[%emt 0:01:30]} 15. c4 {[%emt 0:02:30]} (15. axb6 $5 Qxb6 16. Kh2 $11) 15... b4 {[%emt 0:04:30]} 16. Qd1 {[%emt 0:06:30]} ({White should play} 16. Ra2 $11) 16... Qh4 {[%emt 0:04:30]} 17. Rb1 {[%emt 0:03:30]} (17. Kh2 $11) 17... Rae8 {[%emt 0:05:30]} 18. Kh2 {[%emt 0:03:30]} f5 {[%emt 0:08:30]} 19. Bd2 {[%emt 0:02:30]} Nf6 {[%emt 0:05:30]} 20. g3 {[%emt 0:02:30]} Qh5 {[%emt 0:01:30]} 21. Qxh5 {[%emt 0:02:30]} Nxh5 {[%emt 0:01:30]} 22. b3 {[%emt 0:01:30]} Nf6 {[%emt 0:07:30]} 23. Rbe1 {[%emt 0:00:30]} Kf7 {[%emt 0:01:30]} 24. Kg2 {[%emt 0:00:30]} h5 {[%emt 0:08:30]} 25. Kf3 {[%emt 0:01:30]} Rxe1 {[%emt 0:03:30]} 26. Rxe1 {[%emt 0:00:00]} Re8 {[%emt 0:01:30]} 27. Be3 {[%emt 0:02:00]} Bf8 {[%emt 0:01:30]} 28. Re2 {[%emt 0:00:30]} Be7 {[%emt 0:01:30]} 29. Bc1 {[%emt 0:04:30]} Bd8 {[%emt 0:00:30]} 30. Rxe8 {[%emt 0:01:30]} Nxe8 {[%emt 0:03:30]} 31. g4 {[%emt 0:00:00]} fxg4+ {[%emt 0:01:30]} 32. hxg4 {[%emt 0:00:00]} Bxa5 {[%emt 0:00:30]} 33. f5 {[%emt 0:01:30]} hxg4+ {[%emt 0:00:30]} 34. Kxg4 {[%emt 0:00:30]} gxf5+ {[%emt 0:00:30]} 35. Bxf5 {[%emt 0:00:30]} Bd8 {[%emt 0:01:30]} 36. Be6+ {[%emt 0:00:30]} Kg7 {[%emt 0:00:30]} 37. Kf5 {[%emt 0:00:30]} Bf6 $11 {[%emt 0:07:30]} 38. Bf4 {[%emt 0:00:30]} Be7 {[%emt 0:00:00]} 39. Bc8 {[%emt 0:01:30]} Nc7 {[%emt 0:00:00]} 40. Bxa6 {[%emt 0:01:30]} Kf7 {[%emt 0:01:30]} 41. Ke4 {[%emt 0:01:30]} 1/2-1/2

[Event "Istanbul Open 2017"]
[Site "Istanbul"]
[Date "2017.09.17"]
[Round "9"]
[White "Kilic, Eray"]
[Black "Ozen, Medeni"]
[Result "1-0"]
[ECO "C58"]
[WhiteElo "1727"]
[BlackElo "1718"]
[Annotator "NA RC"]
[PlyCount "68"]
[EventDate "2017.??.??"]
[EventType "swiss"]
[EventCountry "TUR"]
[SourceTitle "playchess.com"]
[Source "ChessBase"]
[SourceQuality "1"]
[TimeControl "5400+30"]

1. e4 {[%emt 0:00:30]} e5 {[%emt 0:01:00]} 2. Nf3 {[%emt 0:00:00]} Nc6 {[%emt 0:00:30]} 3. Bc4 {[%emt 0:00:00]} Nf6 {[%emt 0:00:00]} 4. Ng5 {[%emt 0:00:00]} d5 {[%emt 0:00:00]} 5. exd5 {[%emt 0:00:00]} Na5 {[%emt 0:00:30]} 6. d3 {[%emt 0:00:00]} h6 {[%emt 0:04:30]} 7. Nf3 {[%emt 0:00:00]} e4 {[%emt 0:06:30]} 8. Qe2 {[%emt 0:00:30]} Nxc4 {[%emt 0:04:30]} 9. dxc4 {[%emt 0:00:00]} Bc5 {[%emt 0:02:30]} 10. O-O {[%emt 0:04:00]} Qe7 {[%emt 0:03:30]} 11. Nfd2 {[%emt 0:12:30]} e3 {[%emt 0:01:30]} 12. fxe3 {[%emt 0:00:00]} Ng4 {[%emt 0:07:30]} 13. Nf3 {[%emt 0:01:00]} O-O {[%emt 0:03:30]} 14. Nc3 {[%emt 0:04:30]} Re8 {[%emt 0:01:30]} 15. Bd2 {[%emt 0:04:30]} f5 {[%emt 0:05:30]} 16. Kh1 {[%emt 0:29:30]} Bd7 {[%emt 0:06:30]} 17. Rae1 {[%emt 0:13:30]} Qf7 {[%emt 0:13:30]} 18. h3 {[%emt 0:06:30]} Qh5 {[%emt 0:00:30]} 19. e4 {[%emt 0:02:30]} fxe4 {[%emt 0:06:30]} 20. Nh2 {[%emt 0:00:30]} e3 {[%emt 0:01:30]} 21. hxg4 {[%emt 0:04:38]} exd2 {[%emt 0:02:30]} 22. gxh5 {[%emt 0:00:31]} dxe1=Q {[%emt 0:00:30]} 23. Qxe1 {[%emt 0:00:09]} Rxe1 {[%emt 0:00:30]} 24. Rxe1 {[%emt 0:00:11]} Rf8 {[%emt 0:02:30]} 25. Ne4 {[%emt 0:00:53]} Bd4 {[%emt 0:00:30]} 26. c3 {[%emt 0:00:23]} Be5 {[%emt 0:01:30]} 27. Nf3 {[%emt 0:00:05]} Rf5 {[%emt 0:00:30]} 28. Kg1 {[%emt 0:05:37]} Rxh5 {[%emt 0:03:30]} 29. c5 {[%emt 0:00:30]} Bf4 {[%emt 0:00:30]} 30. c4 {[%emt 0:00:21]} Bg4 {[%emt 0:00:30]} 31. d6 {[%emt 0:00:37]} Bf5 {[%emt 0:01:30]} 32. g3 {[%emt 0:01:00]} cxd6 {[%emt 0:02:39]} 33. gxf4 {[%emt 0:01:16]} Bxe4 {[%emt 0:00:12]} 34. cxd6 {[%emt 0:00:52]} Bf5 {[%emt 0:00:35]} 1-0